bitfinex/quotes_BTCUSD_20250410
["timestamp","ask_amount","ask_price","bid_price","bid_amount"]
[1744303911020,0.00012722,79558.0,79557.0,0.46690758]
[1744303911396,0.01012722,79558.0,79557.0,0.12690758]
[1744303911557,0.251395,79556.0,79555.0,0.25572]
[1744303911756,0.03,79556.0,79555.0,0.25572]
[1744303911955,0.03,79556.0,79555.0,2.02939658]
[1744303912153,0.00012722,79558.0,79557.0,0.012569]
[1744303912362,0.00012722,79558.0,79557.0,0.13947658]
[1744303912610,0.00012722,79558.0,79557.0,0.14199004]
[1744303912883,0.00012722,79558.0,79557.0,0.15401743]
[1744303913215,0.00012722,79558.0,79557.0,0.13947658]
[1744303913402,0.00012722,79558.0,79557.0,0.15653069]
[1744303913816,0.00012722,79558.0,79557.0,0.16220744]
[1744303915274,0.00012722,79558.0,79557.0,0.14963844]
[1744303915456,0.00012722,79558.0,79552.0,0.01257]
[1744303915457,0.00012722,79558.0,79556.0,0.263962]
[1744303915634,0.00012722,79558.0,79530.0,0.44582969]
[1744303915635,0.00012722,79558.0,79548.0,0.251418]
[1744303915841,0.01012722,79558.0,79556.0,0.251393]
[1744303916045,0.01012722,79558.0,79557.0,0.012569]
[1744303916046,0.00012722,79558.0,79557.0,0.012569]
[1744303916243,0.00012722,79558.0,79557.0,0.13947658]
[1744303917077,0.01012722,79558.0,79557.0,0.13947658]
[1744303917859,0.01012722,79558.0,79557.0,0.14199023]
[1744303918075,0.00012722,79558.0,79557.0,0.13947658]
[1744303919566,0.00012722,79558.0,79557.0,0.47947658]
[1744303919929,0.00012722,79558.0,79557.0,0.50223855]
[1744303920698,0.00012722,79558.0,79557.0,0.47947658]
[1744303920878,0.00012722,79558.0,79554.0,0.251398]
[1744303921078,0.01012722,79558.0,79556.0,0.263961]
[1744303921335,0.01012722,79558.0,79557.0,0.012569]
[1744303921502,0.01012722,79558.0,79556.0,0.263961]
[1744303921705,0.01012722,79558.0,79552.0,0.251407]
[1744303921906,0.01012722,79558.0,79556.0,0.263963]
[1744303922112,0.01012722,79558.0,79554.0,0.251401]
[1744303922310,0.01012722,79558.0,79557.0,0.251392]
[1744303922551,0.01012722,79558.0,79556.0,0.251395]
[1744303922768,0.01012722,79558.0,79557.0,0.012569]
[1744303922973,0.00012722,79558.0,79557.0,0.13947658]
[1744303923609,0.00012722,79558.0,79557.0,0.012569]
[1744303923808,0.01269622,79558.0,79547.0,0.263993]
[1744303924051,0.03012722,79558.0,79551.0,0.263981]
[1744303924369,0.03012722,79558.0,79552.0,0.251407]
[1744303924675,0.012572,79538.0,79514.0,0.25564]
[1744303924810,0.02,79538.0,79536.0,0.264029]
[1744303925015,0.02,79538.0,79534.0,0.251462]
[1744303925217,0.02,79538.0,79536.0,0.264028]
[1744303925510,0.02,79538.0,79537.0,0.14199399]
[1744303925719,0.00012722,79558.0,79553.0,0.01257]
[1744303925917,0.25144,79542.0,79538.0,0.34]
[1744303926168,0.012571,79546.0,79538.0,0.12690758]
[1744303926382,0.012571,79544.0,79537.0,0.25564]
[1744303926521,0.251449,79539.0,79537.0,0.25564]
[1744303926715,0.261449,79539.0,79537.0,0.25564]
[1744303926984,0.012572,79538.0,79537.0,0.25564]
[1744303927184,0.012572,79536.0,79523.0,0.012574]
[1744303927395,0.012577,79506.0,79497.0,0.25564]
[1744303927542,0.012577,79506.0,79500.0,0.12790758]
[1744303927543,0.02,79506.0,79500.0,0.12790758]
[1744303927883,0.02,79506.0,79501.0,0.251567]
[1744303928094,0.02,79506.0,79505.0,0.012577]
[1744303928322,0.02,79506.0,79505.0,0.13948458]
[1744303928545,0.057972,79537.0,79527.0,0.264059]
[1744303928731,0.012572,79536.0,79527.0,0.268214]
[1744303928889,0.012572,79536.0,79532.0,0.012573]
[1744303928890,0.04,79536.0,79532.0,0.012573]
[1744303929305,0.04,79536.0,79535.0,0.012573]
[1744303929526,0.04,79536.0,79535.0,0.13948058]
[1744303929708,8e-07,79558.0,79551.0,0.01257]
[1744303929873,0.0425698,79558.0,79550.0,0.25564]
[1744303930075,0.00012642,79552.0,79550.0,0.25564]
[1744303930317,0.251411,79551.0,79550.0,0.25564]
[1744303930491,0.251411,79551.0,79535.0,0.34]
[1744303930492,0.012571,79544.0,79535.0,0.25568]
[1744303930690,0.02,79544.0,79537.0,0.251452]
[1744303930893,0.02,79544.0,79535.0,0.25568]
[1744303931101,0.02,79544.0,79539.0,0.012572]
[1744303931303,0.02,79544.0,79535.0,0.25568]
[1744303931504,0.02,79544.0,79542.0,0.251438]
[1744303931707,0.02,79544.0,79537.0,0.012572]
[1744303932061,0.02,79544.0,79539.0,0.012572]
[1744303932193,0.02,79544.0,79540.0,0.251444]
[1744303932389,0.251358,79568.0,79551.0,0.01257]
[1744303932635,0.01012642,79552.0,79551.0,0.39088858]
[1744303933044,0.00012642,79552.0,79551.0,0.39088858]
[1744303933206,0.00012642,79552.0,79551.0,0.73088858]
[1744303933409,0.00012642,79552.0,79546.0,0.263996]
[1744303933620,0.00012642,79552.0,79550.0,0.251412]
[1744303933975,0.00012642,79552.0,79550.0,0.39088958]
[1744303934166,0.00012642,79552.0,79551.0,0.48199152]
[1744303934340,0.00012642,79552.0,79551.0,0.51771446]
[1744303935356,0.00012642,79552.0,79551.0,0.47947758]
[1744303935545,0.00012642,79552.0,79551.0,0.51773925]
[1744303936724,0.00012642,79552.0,79551.0,0.5322801]
[1744303937086,4.2e-07,79552.0,79551.0,0.55526495]
[1744303937280,4.2e-07,79552.0,79551.0,0.65266495]
[1744303937695,8e-07,79558.0,79557.0,0.012569]
[1744303937892,8e-07,79558.0,79557.0,2.10324897]
[1744303938142,0.0120333,79607.0,79557.0,2.10324897]
[1744303938143,0.0120333,79607.0,79579.0,0.34]
[1744303938455,9e-07,79596.0,79595.0,0.61837585]
[1744303938613,9e-07,79596.0,79595.0,0.76900425]
[1744303938798,0.0120333,79607.0,79602.0,0.603811]
[1744303939001,0.0120333,79607.0,79602.0,0.76898025]
[1744303939200,0.00058892,79603.0,79602.0,0.76898025]
[1744303939443,0.00058892,79603.0,79602.0,0.75370343]
[1744303939849,0.00058892,79603.0,79602.0,0.76518588]
[1744303940599,0.00058892,79603.0,79602.0,0.42518588]
[1744303941161,0.00058892,79603.0,79602.0,0.40220103]
[1744303942073,0.00058892,79603.0,79602.0,0.41360708]
[1744303942273,0.00048611,79603.0,79602.0,0.41360708]
[1744303942684,0.00048611,79603.0,79602.0,0.42814793]
[1744303942895,1.1e-07,79603.0,79602.0,0.42814793]
[1744303943098,1.1e-07,79603.0,79602.0,0.80631088]
[1744303943508,4.1e-07,79607.0,79606.0,0.603798]
[1744303943663,4.1e-07,79607.0,79606.0,1.02358853]
[1744303944276,4.1e-07,79607.0,79606.0,0.99996643]
[1744303944682,4.1e-07,79607.0,79606.0,0.98542558]
[1744303945263,4.1e-07,79607.0,79606.0,1.00831408]
[1744303945466,4.1e-07,79607.0,79606.0,1.02285493]
[1744303946673,4.1e-07,79607.0,79606.0,1.06985493]
[1744303947889,4.1e-07,79607.0,79606.0,1.00831408]
[1744303948261,0.0001675,79632.0,79606.0,1.00831408]
[1744303948262,0.2638815,79632.0,79624.0,0.251179]
[1744303948463,0.012559,79622.0,79616.0,0.251204]
[1744303948660,0.062559,79622.0,79614.0,0.251211]
[1744303948866,0.05,79622.0,79615.0,0.251206]
[1744303949067,0.05,79622.0,79607.0,0.34]
[1744303949068,0.012562,79604.0,79589.0,0.012564]
[1744303949275,0.012562,79604.0,79570.0,0.72052398]
[1744303949276,0.02,79604.0,79602.0,0.251249]
[1744303949477,0.25125,79602.0,79600.0,7.0]
[1744303949686,0.012562,79601.0,79600.0,7.0]
[1744303949832,0.032562,79601.0,79600.0,7.0]
[1744303950237,0.02,79601.0,79600.0,7.0]
[1744303950871,0.032562,79601.0,79600.0,7.0]
[1744303951072,0.20556958,79601.0,79600.0,2.5006]
[1744303951276,0.20556958,79601.0,79569.0,1.4596461]
[1744303951277,0.012567,79570.0,79569.0,0.1664061]
[1744303951473,0.453918,79570.0,79569.0,0.1664061]
[1744303951677,0.453918,79570.0,79569.0,0.16682732]
[1744303952277,0.263944,79562.0,79550.0,0.001]
[1744303952478,0.463944,79562.0,79561.0,0.20619514]
[1744303953091,0.263977,79552.0,79550.0,0.001]
[1744303953289,0.263977,79552.0,79536.0,0.012572]
[1744303953290,0.012572,79540.0,79531.0,0.012573]
[1744303953506,0.264024,79539.0,79538.0,0.00012642]
[1744303953665,0.404024,79539.0,79538.0,0.00012642]
[1744303953847,0.14,79539.0,79538.0,0.00012642]
[1744303954056,0.152572,79539.0,79538.0,0.00012642]
[1744303954284,0.14,79539.0,79538.0,0.00012642]
[1744303954734,0.14,79539.0,79538.0,0.01269842]
[1744303955645,0.14,79539.0,79538.0,0.00012642]
[1744303956436,0.40402,79539.0,79538.0,0.00012642]
[1744303957043,0.40402,79539.0,79519.0,0.000335]
[1744303957044,0.251502,79522.0,79519.0,0.000335]
[1744303957217,0.251502,79522.0,79500.0,0.001]
[1744303957218,0.26414,79503.0,79500.0,0.001]
[1744303957419,0.36414,79503.0,79502.0,0.00075698]
[1744303957677,0.36314,79503.0,79502.0,0.00075698]
[1744303958154,0.49004758,79503.0,79502.0,0.00075698]
[1744303958530,0.264167,79495.0,79494.0,2e-07]
[1744303958733,0.264167,79495.0,79471.0,0.000335]
[1744303958734,0.264243,79472.0,79471.0,0.000335]
[1744303958912,0.294243,79472.0,79471.0,0.00046153]
[1744303959319,0.42115058,79472.0,79471.0,0.00046153]
[1744303959526,0.264276,79462.0,79461.0,0.002]
[1744303959725,0.294276,79462.0,79461.0,0.002]
[1744303960950,0.03,79462.0,79461.0,0.002]
[1744303961563,0.042584,79462.0,79461.0,0.002]
[1744303961769,0.03,79462.0,79461.0,0.002]
[1744303963267,0.042584,79462.0,79461.0,0.002]
[1744303966031,0.03,79462.0,79461.0,0.002]
[1744303966530,0.03,79462.0,79461.0,0.014584]
[1744303967015,0.294276,79462.0,79461.0,0.002]
[1744303967241,0.03,79462.0,79461.0,0.002]
[1744303967473,0.264257,79468.0,79461.0,0.014584]
[1744303967725,0.251684,79465.0,79461.0,0.002]
[1744303967963,0.012583,79470.0,79462.0,0.012584]
[1744303968198,0.012583,79470.0,79461.0,0.002]
[1744303968199,0.251675,79468.0,79461.0,0.002]
[1744303968418,0.251675,79468.0,79462.0,0.012584]
[1744303968419,0.01,79468.0,79462.0,0.012584]
[1744303968653,0.01,79484.0,79461.0,0.014584]
[1744303968654,0.012581,79480.0,79471.0,0.012583]
[1744303968880,0.264219,79479.0,79472.0,0.251659]
[1744303969108,0.274219,79479.0,79472.0,0.264242]
[1744303969334,0.251644,79478.0,79473.0,0.251656]
[1744303969577,0.01,79478.0,79475.0,0.012582]
[1744303969798,0.01,79478.0,79475.0,0.264233]
[1744303970019,0.01,79478.0,79473.0,0.251655]
[1744303970245,0.012582,79474.0,79460.0,0.012584]
[1744303970486,0.012582,79474.0,79458.0,0.000436]
[1744303970487,0.012582,79473.0,79464.0,0.012584]
[1744303970707,0.251665,79471.0,79461.0,0.266278]
[1744303970904,0.02,79471.0,79461.0,0.002]
[1744303971107,0.02,79471.0,79470.0,0.012583]
[1744303971307,0.02,79471.0,79470.0,0.13949058]
[1744303971552,0.01258,79491.0,79484.0,0.264203]
[1744303971751,0.01258,79490.0,79481.0,0.264213]
[1744303972095,0.251617,79486.0,79481.0,0.264213]
[1744303972251,0.251617,79486.0,79471.0,0.251664]
[1744303972252,0.251645,79477.0,79471.0,0.251664]
[1744303972451,0.274227,79477.0,79471.0,0.251664]
[1744303972646,0.012582,79476.0,79470.0,0.12690758]
[1744303972882,0.264237,79474.0,79470.0,0.12690758]
[1744303973049,0.012582,79477.0,79470.0,0.12690758]
[1744303973256,0.251649,79476.0,79472.0,0.251659]
[1744303973463,0.012582,79475.0,79470.0,0.12690758]
[1744303973632,0.251689,79464.0,79459.0,0.012585]
[1744303973832,0.012583,79471.0,79459.0,0.012585]
[1744303973833,0.012583,79472.0,79466.0,0.251678]
[1744303974031,0.251667,79470.0,79463.0,0.251687]
[1744303974234,0.01,79470.0,79466.0,0.251677]
[1744303974443,0.01,79470.0,79469.0,0.012583]
[1744303974644,0.01,79470.0,79469.0,0.13949058]
[1744303974850,0.251626,79483.0,79477.0,0.251642]
[1744303975090,0.01,79483.0,79477.0,0.13948958]
[1744303975331,0.261628,79483.0,79478.0,0.251641]
[1744303975529,0.012582,79475.0,79469.0,0.25444]
[1744303975681,0.251653,79475.0,79470.0,0.12690758]
[1744303975863,0.251667,79470.0,79469.0,0.25444]
[1744303976079,0.26425,79470.0,79469.0,0.25444]
[1744303976283,0.27425,79470.0,79469.0,0.25444]
[1744303980123,0.042584,79462.0,79461.0,0.002]
[1744303981216,0.294276,79462.0,79461.0,0.002]
[1744303981943,0.42118358,79462.0,79461.0,0.002]
[1744303982709,0.264287,79459.0,79458.0,1e-06]
[1744303982870,0.57119458,79459.0,79458.0,0.00012754]
[1744303983070,0.264319,79449.0,79446.0,0.0003352]
[1744303983273,0.264319,79449.0,79431.0,0.002]
[1744303983274,0.251778,79435.0,79431.0,0.002]
[1744303983493,0.464366,79435.0,79431.0,0.002]
[1744303984825,0.464366,79435.0,79434.0,0.5192254]
[1744303984826,0.2,79435.0,79434.0,0.5192254]
[1744303984988,0.2,79435.0,79434.0,0.2548554]
[1744303985187,0.2,79435.0,79434.0,0.2674444]
[1744303985426,0.012588,79440.0,79434.0,0.2674444]
[1744303985427,0.251764,79441.0,79437.0,0.012588]
[1744303985688,0.01,79441.0,79437.0,0.012588]
[1744303985865,0.012588,79435.0,79434.0,0.2548554]
[1744303986212,0.264363,79439.0,79434.0,0.2674444]
[1744303986462,0.012585,79458.0,79438.0,0.0486]
[1744303986631,0.251727,79451.0,79446.0,0.251742]
[1744303986815,0.01,79451.0,79450.0,0.264315]
[1744303987020,6.879e-05,79457.0,79450.0,0.264315]
[1744303987021,6.879e-05,79457.0,79456.0,0.264296]
[1744303987317,0.01006879,79457.0,79456.0,0.39120358]
[1744303987925,6.879e-05,79457.0,79456.0,0.43880358]
[1744303988155,6.879e-05,79457.0,79456.0,0.91811685]
[1744303988360,6.879e-05,79457.0,79456.0,0.92972505]
[1744303988987,6.879e-05,79457.0,79456.0,0.66542905]
[1744303989205,6.879e-05,79457.0,79456.0,0.67801405]
[1744303989412,6.879e-05,79457.0,79456.0,0.53852147]
[1744303989622,0.02265379,79457.0,79456.0,0.07332147]
[1744303989783,0.01006879,79457.0,79456.0,0.03482809]
[1744303990600,0.02265379,79457.0,79456.0,0.03482809]
[1744303990800,0.01006879,79457.0,79456.0,0.03482809]
[1744303991005,0.01006879,79457.0,79447.0,0.012587]
[1744303991006,0.01006879,79457.0,79431.0,0.0496]
[1744303991255,0.012587,79442.0,79435.0,0.03872253]
[1744303991461,0.012588,79436.0,79435.0,0.03872253]
[1744303991690,0.022588,79436.0,79435.0,0.03872253]
[1744303991823,0.264366,79435.0,79431.0,0.002]
[1744303992024,0.304366,79435.0,79431.0,0.002]
[1744303992373,0.43127358,79435.0,79431.0,0.002]
[1744303992791,0.264376,79432.0,79431.0,0.002]
[1744303993000,0.264376,79432.0,79429.0,1e-06]
[1744303993001,0.264383,79430.0,79429.0,1e-06]
[1744303993116,0.264383,79430.0,79426.0,0.0003354]
[1744303993117,0.264393,79427.0,79426.0,0.0003354]
[1744303993333,0.264393,79427.0,79400.0,0.0014354]
[1744303993334,0.012592,79411.0,79400.0,0.0014354]
[1744303993643,0.264456,79408.0,79400.0,0.2533234]
[1744303993876,0.264419,79420.0,79415.0,0.251838]
[1744303994074,0.012589,79434.0,79427.0,0.251801]
[1744303994285,0.012589,79434.0,79428.0,0.01259]
[1744303994286,0.14,79434.0,79428.0,0.01259]
[1744303994472,0.14,79434.0,79427.0,0.01259]
[1744303994672,0.14,79434.0,79430.0,0.012589]
[1744303994877,0.14,79434.0,79431.0,0.03871618]
[1744303995077,0.14,79434.0,79428.0,0.264387]
[1744303995078,0.152589,79434.0,79428.0,0.264387]
[1744303995250,0.14,79434.0,79432.0,0.251787]
[1744303995453,0.14,79434.0,79432.0,0.264376]
[1744303995672,0.14,79434.0,79431.0,0.264376]
[1744303995881,0.012589,79430.0,79420.0,0.251823]
[1744303996084,0.03,79430.0,79429.0,0.012589]
[1744303996241,0.251737,79448.0,79439.0,0.012588]
[1744303996446,0.251737,79448.0,79442.0,0.251754]
[1744303996447,0.251747,79445.0,79442.0,0.251754]
[1744303996724,0.291747,79445.0,79442.0,0.251754]
[1744303997000,0.04,79445.0,79443.0,0.251752]
[1744303997202,0.04,79445.0,79444.0,0.012587]
[1744303997342,0.04,79445.0,79442.0,0.251754]
[1744303997549,0.052587,79445.0,79441.0,0.251758]
[1744303997770,0.052587,79445.0,79433.0,0.012589]
[1744303997771,0.012587,79443.0,79437.0,0.012588]
[1744303997968,0.032587,79443.0,79439.0,0.251764]
[1744303998194,0.271753,79443.0,79440.0,0.251761]
[1744303998404,0.02,79443.0,79440.0,0.264349]
[1744303998600,0.02,79443.0,79441.0,0.251757]
[1744303998804,0.02,79443.0,79442.0,0.012587]
[1744303999121,0.012585,79457.0,79452.0,0.012586]
[1744303999122,0.264294,79457.0,79452.0,0.012586]
[1744303999323,0.251719,79454.0,79448.0,0.012586]
[1744303999539,0.03,79454.0,79452.0,0.251721]
[1744303999685,0.03,79454.0,79453.0,0.012586]
[1744303999884,0.03,79454.0,79453.0,0.0512508]
[1744304000461,0.03,79454.0,79448.0,0.012586]
[1744304000652,0.03,79454.0,79452.0,0.012586]
[1744304000842,0.03,79454.0,79453.0,0.05126983]
[1744304001001,0.03,79454.0,79453.0,0.03868383]
[1744304001206,0.012587,79446.0,79439.0,0.012588]
[1744304001405,0.02,79446.0,79441.0,0.03869995]
[1744304001629,0.02,79446.0,79443.0,0.012587]
[1744304001963,0.02,79446.0,79445.0,0.012587]
[1744304002125,0.012582,79474.0,79469.0,0.012583]
[1744304002328,0.012585,79459.0,79455.0,0.25404]
[1744304002528,0.012585,79456.0,79455.0,0.25404]
[1744304002729,0.032585,79456.0,79455.0,0.25404]
[1744304004344,0.016585,79456.0,79455.0,0.25404]
[1744304004761,0.14349258,79456.0,79455.0,0.25404]
[1744304004961,0.251768,79438.0,79435.0,0.25404]
[1744304005166,0.264359,79437.0,79436.0,0.03869147]
[1744304005373,0.01,79437.0,79436.0,0.03869147]
[1744304005577,0.022588,79437.0,79436.0,0.03869147]
[1744304005792,0.251804,79427.0,79424.0,0.01259]
[1744304005997,0.251804,79427.0,79425.0,0.03873618]
[1744304005998,0.01,79427.0,79425.0,0.03873618]
[1744304006197,0.01,79427.0,79426.0,0.01259]
[1744304006507,0.01,79427.0,79426.0,0.05132618]
[1744304006655,0.02259,79427.0,79426.0,0.03873618]
[1744304007002,0.02259,79427.0,79423.0,0.00012661]
[1744304007152,0.251806,79426.0,79423.0,0.00012661]
[1744304007363,0.271806,79426.0,79423.0,0.00012661]
[1744304007958,0.02,79426.0,79423.0,0.00012661]
[1744304008159,0.02,79426.0,79425.0,0.264399]
[1744304008369,0.012587,79444.0,79436.0,0.26436]
[1744304008591,0.012587,79444.0,79435.0,0.264363]
[1744304008592,0.012587,79443.0,79435.0,0.264363]
[1744304008744,0.132587,79443.0,79435.0,0.251775]
[1744304008952,0.251757,79442.0,79436.0,0.251773]
[1744304009152,0.012588,79440.0,79430.0,0.012589]
[1744304009365,0.012589,79431.0,79422.0,0.251818]
[1744304009581,0.251797,79429.0,79420.0,0.012591]
[1744304009786,0.264379,79431.0,79421.0,1.547741]
[1744304010148,0.251811,79425.0,79423.0,0.00012661]
[1744304010321,0.01259,79424.0,79423.0,0.00012661]
[1744304010506,0.31949758,79424.0,79423.0,0.00012661]
[1744304011126,0.31949758,79424.0,79407.0,0.0120333]
[1744304011127,0.264456,79408.0,79407.0,0.0120333]
[1744304011330,0.444456,79408.0,79407.0,0.0120333]
[1744304011528,0.57136358,79408.0,79407.0,0.0120333]
[1744304012135,0.59482959,79408.0,79407.0,0.0120333]
[1744304012335,0.59482959,79408.0,79401.0,0.002]
[1744304012336,0.604476,79402.0,79401.0,0.002]
[1744304012541,0.90138358,79402.0,79401.0,0.002]
[1744304013153,0.92482904,79402.0,79401.0,0.002]
[1744304013352,0.90138358,79402.0,79401.0,0.002]
[1744304015534,0.92092443,79402.0,79401.0,0.002]
[1744304015734,1.04770008,79402.0,79401.0,0.002]
[1744304015951,0.92092443,79402.0,79401.0,0.002]
[1744304016154,0.94431703,79402.0,79401.0,0.002]
[1744304016354,0.92477618,79402.0,79401.0,0.002]
[1744304016559,0.90138358,79402.0,79401.0,0.002]
[1744304017002,0.90138358,79402.0,79386.0,1e-06]
[1744304017003,0.012596,79387.0,79386.0,1e-06]
[1744304017202,1.34007443,79387.0,79386.0,1e-06]
[1744304017410,0.609543,79382.0,79381.0,8e-07]
[1744304017622,0.92645058,79382.0,79381.0,8e-07]
[1744304017914,0.93599259,79382.0,79381.0,8e-07]
[1744304018116,1.36963344,79382.0,79381.0,8e-07]
[1744304018323,1.50892751,79382.0,79381.0,0.00042293]
[1744304018516,1.38215186,79382.0,79381.0,0.00042293]
[1744304018724,1.40551086,79382.0,79381.0,0.00042293]
[1744304018858,1.37845159,79382.0,79381.0,0.00042293]
[1744304019059,1.37345159,79382.0,79381.0,0.00042293]
[1744304019265,1.35009259,79382.0,79381.0,0.00042293]
[1744304020082,1.35509259,79382.0,79381.0,0.00042293]
[1744304020286,1.36963344,79382.0,79381.0,0.00042293]
[1744304020487,1.41963264,79382.0,79381.0,0.00042293]
[1744304020738,1.44297263,79382.0,79381.0,0.00042293]
[1744304023555,1.44297263,79382.0,79381.0,9.3e-07]
[1744304024730,1.37343258,79382.0,79381.0,9.3e-07]
[1744304025026,1.35009259,79382.0,79381.0,9.3e-07]
[1744304025595,1.35009259,79382.0,79381.0,0.00010093]
[1744304026306,0.873643,79382.0,79381.0,0.00010093]
[1744304026939,0.6091,79382.0,79381.0,0.00010093]
[1744304027117,0.873643,79382.0,79381.0,0.00010093]
[1744304028330,0.19,79382.0,79381.0,0.00010093]
[1744304028538,0.012594,79402.0,79393.0,0.264505]
[1744304028740,0.251902,79396.0,79385.0,0.012596]
[1744304028961,0.264503,79394.0,79389.0,0.251923]
[1744304029138,0.012594,79399.0,79392.0,0.012595]
[1744304029337,0.012594,79398.0,79392.0,0.012595]
[1744304029580,0.364489,79398.0,79392.0,0.012595]
[1744304029838,0.1,79398.0,79394.0,0.251905]
[1744304030040,0.351895,79398.0,79393.0,0.012595]
[1744304030314,0.264496,79396.0,79395.0,0.0471]
[1744304030617,0.09,79396.0,79395.0,0.0471]
[1744304030812,0.09,79396.0,79395.0,0.3116]
[1744304031026,0.251876,79404.0,79399.0,0.251891]
[1744304031217,0.251885,79402.0,79395.0,0.299005]
[1744304031421,0.04,79402.0,79395.0,0.059695]
[1744304031596,0.04,79402.0,79401.0,0.251885]
[1744304031811,0.04,79402.0,79401.0,0.264479]
[1744304032424,0.251812,79425.0,79419.0,0.251826]
[1744304032601,0.251812,79425.0,79419.0,0.251828]
[1744304032602,0.15,79425.0,79419.0,0.251828]
[1744304032803,0.15,79425.0,79424.0,0.251813]
[1744304033226,0.15,79425.0,79422.0,0.01259]
[1744304033626,0.15042057,79425.0,79424.0,0.01259]
[1744304034035,0.15042057,79425.0,79424.0,0.01269]
[1744304034207,0.16301057,79425.0,79424.0,0.0001]
[1744304036679,0.15042057,79425.0,79424.0,0.0001]
[1744304036908,0.15042057,79425.0,79424.0,0.01269]
[1744304039273,0.15042057,79425.0,79424.0,0.0001]
[1744304039474,0.15042057,79425.0,79424.0,0.01269]
[1744304040286,0.15042057,79425.0,79424.0,0.18529758]
[1744304041314,0.15042057,79425.0,79424.0,0.0458]
[1744304041514,0.15042057,79425.0,79424.0,0.05839]
[1744304041754,0.15042057,79425.0,79424.0,0.0458]
[1744304042757,0.15042057,79425.0,79424.0,0.43711058]
[1744304043567,0.00042057,79425.0,79424.0,0.43711058]
[1744304044935,0.000168,79440.0,79439.0,0.264353]
[1744304045075,0.251806,79426.0,79425.0,0.12690758]
[1744304045282,0.251794,79430.0,79424.0,0.0458]
[1744304045476,0.251794,79430.0,79424.0,0.0001]
[1744304045477,0.264399,79425.0,79424.0,0.0001]
[1744304045729,0.56130658,79425.0,79424.0,0.0001]
[1744304046089,0.57086029,79425.0,79424.0,0.0001]
[1744304046295,0.264496,79396.0,79393.0,0.0495]
[1744304046513,0.434496,79396.0,79387.0,0.25348]
[1744304047000,0.434496,79396.0,79381.0,0.0001]
[1744304047001,0.56140358,79396.0,79381.0,0.0001]
[1744304047241,0.56140358,79396.0,79395.0,1e-06]
[1744304047242,0.91091858,79396.0,79395.0,1e-06]
[1744304047629,0.94880344,79396.0,79395.0,5.7e-07]
[1744304047829,1.08057909,79396.0,79395.0,5.7e-07]
[1744304048029,0.93426259,79396.0,79395.0,5.7e-07]
[1744304048230,0.95380344,79396.0,79395.0,5.7e-07]
[1744304048410,1.04920264,79396.0,79395.0,5.7e-07]
[1744304048656,0.604543,79382.0,79381.0,0.0001]
[1744304048811,0.92145058,79382.0,79381.0,0.0002266]
[1744304049015,0.96433544,79382.0,79381.0,0.0002266]
[1744304049636,0.94479459,79382.0,79381.0,0.0002266]
[1744304050064,0.005,79371.0,79357.0,8e-07]
[1744304050298,0.352603,79346.0,79345.0,8e-07]
[1744304050504,0.66951058,79346.0,79345.0,8e-07]
[1744304050640,0.72026137,79346.0,79345.0,8e-07]
[1744304050877,0.69285459,79346.0,79345.0,8e-07]
[1744304051970,0.70210051,79346.0,79345.0,8e-07]
[1744304052313,0.012605,79328.0,79327.0,1e-07]
[1744304052522,0.97616963,79328.0,79327.0,0.00042291]
[1744304052925,0.94951444,79328.0,79327.0,0.00042291]
[1744304053219,0.93497359,79328.0,79327.0,0.00042291]
[1744304053599,0.91162958,79328.0,79327.0,0.00042291]
[1744304054184,0.91162958,79328.0,79327.0,0.00042281]
[1744304055336,0.60475,79320.0,79319.0,2e-07]
[1744304055526,0.91165758,79320.0,79319.0,2e-07]
[1744304055826,0.57165758,79320.0,79319.0,2e-07]
[1744304056450,0.18,79320.0,79319.0,2e-07]
[1744304057225,0.192607,79320.0,79319.0,2e-07]
[1744304057725,0.18,79320.0,79319.0,2e-07]
[1744304057906,0.192607,79320.0,79319.0,2e-07]
[1744304059090,0.18,79320.0,79319.0,2e-07]
[1744304059291,0.18,79320.0,79319.0,0.2647532]
[1744304059494,0.18,79320.0,79319.0,2e-07]
[1744304059791,0.31951458,79320.0,79319.0,2e-07]
[1744304060032,0.012609,79307.0,79299.0,0.01261]
[1744304060235,0.182609,79307.0,79300.0,0.264814]
[1744304060394,0.264809,79303.0,79298.0,0.0443168]
[1744304060596,0.2,79303.0,79298.0,0.0443168]
[1744304061214,0.264819,79299.0,79298.0,0.0443168]
[1744304061414,0.03,79299.0,79298.0,0.0443168]
[1744304061617,0.05,79315.0,79299.0,0.34]
[1744304061817,0.1,79368.0,79298.0,1.01656414]
[1744304061818,0.252088,79338.0,79324.0,0.012606]
[1744304062019,0.012604,79334.0,79326.0,0.012606]
[1744304062245,0.04,79334.0,79333.0,0.252101]
[1744304062668,0.04,79334.0,79333.0,0.264706]
[1744304062871,0.04,79334.0,79324.0,0.264733]
[1744304063024,0.04,79334.0,79324.0,0.012606]
[1744304063216,0.252118,79328.0,79321.0,0.0494]
[1744304063420,0.13,79328.0,79326.0,0.252122]
[1744304063675,0.012606,79326.0,79321.0,0.0494]
[1744304063908,0.03,79326.0,79323.0,0.252132]
[1744304064110,0.03,79326.0,79324.0,0.264736]
[1744304064612,0.03,79326.0,79319.0,0.012607]
[1744304064812,0.042606,79326.0,79320.0,0.264748]
[1744304065108,0.042606,79326.0,79322.0,0.252136]
[1744304065109,0.03,79326.0,79322.0,0.252136]
[1744304065272,0.03,79326.0,79323.0,0.012606]
[1744304065442,0.03,79326.0,79323.0,0.264736]
[1744304065797,0.03,79326.0,79324.0,0.252129]
[1744304065993,0.264738,79324.0,79318.0,0.012607]
[1744304066197,0.404738,79324.0,79319.0,0.012607]
[1744304066400,0.264759,79317.0,79311.0,0.0477]
[1744304066560,0.15,79317.0,79316.0,0.252155]
[1744304066741,0.15,79317.0,79316.0,0.264762]